Cogmind - Beta 16 @@@ ROGUE MODE // 2026.01.30 @ 21:12:07 Player: Lazz Result: Self-destructed Performance ------------- Evolutions (5) 2500 Regions Visited (6) 1200 Robots Destroyed (25) 125 Value Destroyed (542) 542 Prototype IDs (12) 240 Alien Tech Used (0) 0 Bonus (800) 800 TOTAL SCORE: 5407 Bonus ------- Registered with UFD 300 Met Optimus in HQ 500 Cogmind --------- Core Integrity 560/1000 Matter 29/300 Energy 33/100 System Corruption 0% Temperature Cool (4) Movement Core (100) Ox1 Location -5/Factory Parts ------- > --- POWER (2) -------- (None) > --- PROPULSION (4) --- (None) > --- UTILITY (8) ------ Improved Signal Interpreter Improved Hacking Suite A0-MCA's Component Scanner > --- WEAPON (3) ------- Improved Heavy Laser > --- INVENTORY (5) ---- Small Battery (100) Scrapoid Pod Magnetic Acceleration Cannon Companion Sword Peak State ------------ > --- POWER ------------ Light Fission Core Light Fission Core > --- PROPULSION ------- Wheel Compact Wheel > --- UTILITY ---------- Large Storage Unit Advanced Sensor Array Improved Signal Interpreter Surveybot 17 Chip Improved Hacking Suite A0-MCA's Component Scanner > --- WEAPON ----------- Heavy Ion Cannon Flak Gun Magnetic Acceleration Cannon > --- INVENTORY -------- Small Battery Matter Compressor Improved Sensor Array Scrapoid Pod Thermic Laser Force Rifle Grenade Launcher Mini Grenade Launcher Missile Launcher Welding Torch Junk Cannon Companion Sword DRS Beacon [Rating: 61] Favorites ----------- Power Light Fission Core Engine Ion Engine Power Core Light Fission Core Propulsion Wheel Wheel Wheel Utility Large Storage Unit Device Advanced Sensor Array Storage Large Storage Unit Processor A0-MCA's Component Scanner Hackware Improved Hacking Suite Weapon Riot Gun Energy Gun Riot Gun Energy Cannon Heavy Ion Cannon Ballistic Gun Flak Gun Ballistic Cannon Magnetic Acceleration Cannon Launcher Mini Grenade Launcher Slashing Weapon Companion Sword Build | -11 -10 -10 -9 -9 -6 -5 ------- Run | Yrd Mat Sub Rec Scr Fac Fac Slots Evolved 10 | . . . . . 8 2 Power 1 | . . . . . 1 . Propulsion 2 | . . . . . 2 . Utility 6 | . . . . . 4 2 Weapon 1 | . . . . . 1 . Parts Attached 49 | 8 6 1 . 7 24 3 Power 6 | 1 1 . . 1 3 . Engine 4 | 1 1 . . . 2 . Core 2 | . . . . 1 1 . Reactor . | . . . . . . . Propulsion 15 | 2 2 . . 3 7 1 Treads . | . . . . . . . Leg . | . . . . . . . Wheel 15 | 2 2 . . 3 7 1 Hover . | . . . . . . . Flight . | . . . . . . . Utility 12 | 2 2 . . 2 5 1 Device 4 | 1 . . . . 2 1 Storage 3 | 1 1 . . 1 . . Processor 4 | . 1 . . 1 2 . Hackware 1 | . . . . . 1 . Protection . | . . . . . . . Artifact . | . . . . . . . Weapon 16 | 3 1 1 . 1 9 1 Energy Gun 8 | 3 . 1 . . 3 1 Energy Cannon 1 | . . . . . 1 . Ballistic Gun 2 | . 1 . . 1 . . Ballistic Cannon 1 | . . . . . 1 . Launcher 3 | . . . . . 3 . Special Weapon . | . . . . . . . Impact Weapon . | . . . . . . . Slashing Weapon 1 | . . . . . 1 . Piercing Weapon . | . . . . . . . Special Melee Weapon . | . . . . . . . Unidentified Prototypes . | . . . . . . . Parts Lost 28 | . 4 1 . . 16 7 Power 3 | . . . . . 3 . Propulsion 10 | . 2 . . . 5 3 Utility 6 | . . . . . 2 4 Weapon 9 | . 2 1 . . 6 . Highest Loss Streak 12 | . 3 1 . . 12 7 To Critical Strikes . | . . . . . . . Average Backups 10 | 1 7 9 9 11 11 9 Power . | . . . . . . . Propulsion 1 | . 4 3 3 1 . 2 Utility 3 | . 1 4 4 4 4 3 Weapon 3 | . . 1 1 3 5 2 Tool/Special . | . . . . . . . Unused Backups 13 | . . . . 3 3 7 Power . | . . . . . . . Propulsion 2 | . . . . . . 2 Utility 7 | . . . . 2 1 4 Weapon 2 | . . . . 1 1 . Tool/Special 2 | . . . . . 1 1 Average Slot Usage (%) 85 | . 96 85 85 95 78 47 Engine 4 | . 14 14 14 1 . . Core 6 | . . . . 10 7 . Wheel 22 | . 27 28 28 28 16 9 Device 3 | . 6 . . . 4 9 Storage 10 | . 14 14 14 14 6 4 Processor 15 | . 7 14 14 14 18 16 Hackware 2 | . . . . . 5 5 Energy Gun 10 | . 18 14 14 13 4 . Energy Cannon 1 | . . . . . 4 . Ballistic Gun 5 | . 6 . . 11 3 . Ballistic Cannon 1 | . . . . . 3 . Peak Build Rating 61 | 9 9 10 9 30 61 40 Average Rating 29 | 5 7 7 9 20 53 37 On Entrance 14 | . 9 7 9 9 30 35 Avg Prop Armor Cover (%) 12 | . . . . . 14 12 Naked Turns . | . . . . . . . Heaviest Build 55 | 15 30 30 28 34 55 22 Greatest Support 52 | 32 32 20 20 26 52 12 Greatest Overweight (x) 8 | . 1 1 1 1 8 6 Average Overweight (x) . | . . 1 1 . . . Largest Inventory Capacity 15 | 8 15 15 15 15 15 15 Average Capacity 14 | 7 13 15 15 15 15 13 Most Carried 15 | 4 12 11 10 15 15 14 Average Carried 11 | 1 7 9 9 12 13 11 Final Capacity 15 | 8 15 15 15 15 15 5 Final Carried 15 | 2 10 9 10 14 15 5 Class Distribution -------------------- 73% | Mutant 23% | Skirmisher Dominant Class ---------------- Mutant | -10/Materials Mutant | -10/Subcaves Mutant | -9/Recycling Mutant | -9/Scraptown Skirmisher | -6/Factory Mutant | -5/Factory Resources | -11 -10 -10 -9 -9 -6 -5 ----------- Run | Yrd Mat Sub Rec Scr Fac Fac Matter Collected 639 | 290 35 . . 90 208 16 Remotely . | . . . . . . . Salvage Created 590 | 139 115 . . . 285 51 Parts 40 | 10 7 . . . 20 3 Haulers Intercepted 1 | . 1 . . . . . Recyclers Shooed 3 | 1 1 . . . 1 . Parts Field Recycled . | . . . . . . . Retrieved Matter . | . . . . . . . Parts Self-Destructed 8 | . . 8 . . . . Prevented . | . . . . . . . Parts Restored . | . . . . . . . Kills | -11 -10 -10 -9 -9 -6 -5 ------- Run | Yrd Mat Sub Rec Scr Fac Fac Combat Hostiles Destroyed 12 | . 2 . . . 8 2 Guns 6 | . 2 . . . 2 2 Cannons 1 | . . . . . 1 . AOE 3 | . . . . . 3 . Classes Destroyed 10 | 2 3 . . . 5 . Worker 1 | . . . . . 1 . Builder 4 | . . . . . 4 . Tunneler 4 | 3 . . . . 1 . Hauler 1 | . 1 . . . . . Recycler 2 | 1 . . . . 1 . Watcher 1 | . 1 . . . . . Swarmer 7 | . 2 . . . 3 2 Grunt 1 | . . . . . 1 . Sentry 1 | . . . . . 1 . Programmer 3 | . . . . . 3 . Best Kill Streak 10 | 4 2 . . . 10 2 Combat Bots Only 3 | . 2 . . . 3 2 Max Kills in Single Turn 3 | 1 1 . . . 3 1 Gunslinging . | . . . . . . . Exploded 1 | . . . . . 1 . Melee . | . . . . . . . Uniques/NPCs Destroyed . | . . . . . . . Combat | -11 -10 -10 -9 -9 -6 -5 -------- Run | Yrd Mat Sub Rec Scr Fac Fac Hostile Shots Fired 438 | . 57 38 . . 248 95 Missed 141 | . 19 5 . . 90 27 Hits 297 | . 38 33 . . 158 68 Melee 2 | . . . . . 2 . Projectile 295 | . 38 33 . . 156 68 Critical Strikes 5 | . 1 . . . 3 1 Part Disruptions 1 | . . . . . 1 . Damage Taken 3618 | . 447 248 . . 1868 1055 Core 1136 | . 119 84 . . 493 440 Absorbed by Shields 4 | . . . . . . 4 Core Remaining (%) 53 | 100 . . . 18 42 . Volleys Fired 79 | 12 23 . . . 36 8 Largest 3 | 2 2 . . . 3 1 Hottest 190 | 90 90 . . . 190 65 Shots Fired 139 | 23 37 . . . 71 8 Gun 106 | 23 37 . . . 38 8 Cannon 21 | . . . . . 21 . Launcher 12 | . . . . . 12 . Special . | . . . . . . . Kinetic 27 | . 9 . . . 18 . Thermal 92 | 22 23 . . . 39 8 Explosive 12 | . . . . . 12 . Electromagnetic 8 | 1 5 . . . 2 . Robot Hit Streak 12 | 12 7 . . . 10 4 Robot Miss Streak 6 | 1 6 . . . 4 6 Penetration Max . | . . . . . . . Secondary Targets 1 | . . . . . 1 . Max Gunslinging Chain 1 | . . . . . 1 . Shots Hit Robots 82 | 17 22 . . . 41 2 Core Hits 53 | 5 8 . . . 38 2 Critical Kills 1 | . . . . . 1 . Critical Parts Destroyed . | . . . . . . . Critical Strikes 8 | . 2 . . . 5 1 Burn 6 | . 1 . . . 4 1 Destroy 1 | . . . . . 1 . Corrupt 1 | . 1 . . . . . Melee Attacks 7 | . . . . . 7 . Impact . | . . . . . . . Slashing 7 | . . . . . 7 . Piercing . | . . . . . . . Sneak Attacks . | . . . . . . . Combat Hostiles . | . . . . . . . Follow-up Attacks . | . . . . . . . Damage Inflicted 2203 | 200 339 2 . . 1612 50 Guns 1003 | 200 285 . . . 468 50 Cannons 316 | . . . . . 316 . Explosions 848 | . 25 . . . 823 . Melee . | . . . . . . . Ramming 36 | . 29 2 . . 5 . Kinetic 316 | . 64 . . . 252 . Thermal 958 | 200 176 . . . 532 50 Explosive 823 | . . . . . 823 . Electromagnetic 70 | . 70 . . . . . Impact . | . . . . . . . Slashing . | . . . . . . . Piercing . | . . . . . . . Highest Corruption 7 | . . . . . 7 . Average Corruption 4 | . . . . . 4 . Corruption Purged . | . . . . . . . Corruption Blocked . | . . . . . . . Effects 4 | . . . . . 4 . Matter Fused 2 | . . . . . 2 . Heat Flow Errors 1 | . . . . . 1 . Energy Discharges 1 | . . . . . 1 . Overload Shots . | . . . . . . . Overflow Damage 6 | . 6 . . . . . Projectiles . | . . . . . . . Explosions 6 | . 6 . . . . . Melee . | . . . . . . . Knockbacks 2 | . . . . . 2 . Impact . | . . . . . . . Kinetic 2 | . . . . . 2 . Secondary . | . . . . . . . Self-Inflicted Damage 54 | . 51 1 . . 2 . Shots 1 | . 1 . . . . . Rammed 5 | . 2 1 . . 2 . Targets Rammed 5 | . 2 1 . . 2 . Kicked . | . . . . . . . Crushed . | . . . . . . . Highest Temperature 398 | 310 177 . . . 398 12 Average Temperature 102 | 148 58 . . . 115 5 Received Heat Transfer 598 | . 177 96 . . 273 52 Effects 5 | 1 . . . . 4 . Shutdowns 1 | . . . . . 1 . Energy Bleed 1 | . . . . . 1 . Interference 1 | . . . . . 1 . Matter Decay 1 | . . . . . 1 . Short Circuit 1 | 1 . . . . . . Siege Activations . | . . . . . . . Martial Activations . | . . . . . . . Shielding Activations . | . . . . . . . Robots Disrupted . | . . . . . . . Combat Hostiles . | . . . . . . . Robots Corrupted . | . . . . . . . Combat Hostiles . | . . . . . . . Parts Fried 1 | . 1 . . . . . Impact Corruptions . | . . . . . . . Robots Melted 2 | . . . . . 2 . Combat Hostiles 2 | . . . . . 2 . Parts Melted 8 | . 1 . . . 6 1 Heat Transferred 2583 | 509 568 . . . 1358 148 Parts Sabotaged 2 | . . . . . 2 . Parts Stolen . | . . . . . . . Parts Stripped . | . . . . . . . Power Chain Reactions 1 | . 1 . . . . . Alert | -11 -10 -10 -9 -9 -6 -5 ------- Run | Yrd Mat Sub Rec Scr Fac Fac Maximum Alert Level . | . . . . . . . Low Security (%) 100 | 100 100 . 100 . 100 100 Level 1 . | . . . . . . . Level 2 . | . . . . . . . Level 3 . | . . . . . . . Level 4 . | . . . . . . . Level 5 . | . . . . . . . High Security . | . . . . . . . Max Security . | . . . . . . . Peak Influence 85 | 15 45 . 34 . 80 85 Initial 9 | . . . 4 . . 9 Average 10 | 2 7 . 9 . 12 7 Influence Increases 645 | 20 127 30 60 . 301 107 Destroy 0b10 Robot/C 240 | . 40 . . . 160 40 Destroy 0b10 Robot/NC 65 | 20 10 . . . 35 . Destroy Leader 54 | . 4 . . . 40 10 Successful Hack 40 | . 24 . . . 4 12 Select Force Hacks 60 | . . . 60 . . . Disable Machine 30 | . . . . . 30 . Destroy Structure 36 | . 4 . . . 32 . Lose Combat Pursuer 120 | . 45 30 . . . 45 Influence Decreases 560 | 20 92 55 70 . 282 41 Entered New Map 34 | . . 18 6 . . 10 Time Decay 376 | 20 92 27 64 . 142 31 Lost Part 150 | . . 10 . . 140 . Squads Dispatched 13 | . 1 . . . 10 2 Investigation 4 | . 1 . . . 2 1 Extermination 3 | . . . . . 3 . Reinforcement 3 | . . . . . 2 1 Assault . | . . . . . . . Garrison 3 | . . . . . 3 . Intercept . | . . . . . . . Searches Triggered . | . . . . . . . Construction Impeded 1 | . . . . . 1 . Haulers Reinforced . | . . . . . . . Active Scanning Responses . | . . . . . . . Cargo Convoy Interrupts 1 | . . . . . 1 . Stealth | -11 -10 -10 -9 -9 -6 -5 --------- Run | Yrd Mat Sub Rec Scr Fac Fac Distress Signals 2 | . 1 . . . 1 . Communications Jammed . | . . . . . . . Distress Signals . | . . . . . . . Times Spotted 60 | . 10 8 . . 30 12 Peak Tracking Total 16 | . 6 6 . . 16 8 Tactical Retreats 3 | . 1 1 . . . 1 Traps | -11 -10 -10 -9 -9 -6 -5 ------- Run | Yrd Mat Sub Rec Scr Fac Fac Traps Triggered 4 | . 1 . . . 2 1 Indirectly . | . . . . . . . Trap Hack Attempts . | . . . . . . . Triggered . | . . . . . . . Disarmed . | . . . . . . . Reprogrammed . | . . . . . . . Reused . | . . . . . . . Traps Extracted . | . . . . . . . Installed . | . . . . . . . Triggered . | . . . . . . . Machines | -11 -10 -10 -9 -9 -6 -5 ---------- Run | Yrd Mat Sub Rec Scr Fac Fac Machines Disabled 2 | . . . . . 2 . Max in Single Turn 1 | . . . . . 1 . Machines Repaired . | . . . . . . . Machines Dismantled . | . . . . . . . Machines Sabotaged . | . . . . . . . Overloaded Fab Kills . | . . . . . . . Hacking | -11 -10 -10 -9 -9 -6 -5 --------- Run | Yrd Mat Sub Rec Scr Fac Fac Machines Accessed 16 | . 3 . 6 1 5 1 Terminals 10 | . 3 . 4 . 3 . Fabricators 3 | . . . . . 2 1 Repair Stations . | . . . . . . . Recycling Units 2 | . . . 2 . . . Scanalyzers . | . . . . . . . Garrison Access . | . . . . . . . Total Hacks 41 | . 13 . 14 2 10 2 Successful 18 | . 3 . 8 2 3 2 Failed 23 | . 10 . 6 . 7 . Catastrophic 3 | . 3 . . . . . Database Lockouts . | . . . . . . . Manual 11 | . 5 . 6 . . . Terminals 30 | . 13 . 11 . 6 . Fabricators 6 | . . . . . 4 2 Repair Stations . | . . . . . . . Recycling Units 3 | . . . 3 . . . Scanalyzers . | . . . . . . . Garrison Access . | . . . . . . . Terminal Hacks 10 | . 3 . 4 2 1 . Record 4 | . . . 2 1 1 . Robot Schematic 1 | . . . 1 . . . Robot Analysis 2 | . 2 . . . . . Open Door 1 | . . . . 1 . . Terminal Index 1 | . . . 1 . . . Locate Traps 1 | . 1 . . . . . Fabricator Hacks 4 | . . . . . 2 2 Load Schematic 2 | . . . . . 1 1 Build 2 | . . . . . 1 1 Repair Station Hacks . | . . . . . . . Recycling Unit Hacks 1 | . . . 1 . . . Retrieve Components 1 | . . . 1 . . . Scanalyzer . | . . . . . . . Garrison Access Hacks . | . . . . . . . Unauthorized Hacks 3 | . . . 3 . . . Terminals 1 | . . . 1 . . . Botnet 1 | . . . 1 . . . Fabricators . | . . . . . . . Repair Stations . | . . . . . . . Recycling Units 2 | . . . 2 . . . Tunnel 2 | . . . 2 . . . Scanalyzers . | . . . . . . . Garrison Access . | . . . . . . . Data Cores Recovered . | . . . . . . . Used . | . . . . . . . Hacking Detections 13 | . 3 . 4 . 5 1 Full Trace Events 5 | . 2 . . . 2 1 Feedback Events . | . . . . . . . Feedback Blocked . | . . . . . . . Robot Schematics Acquired 1 | . . . 1 . . . Robots Built 2 | . . . . . 1 1 Authchips . | . . . . . . . Time 148 | . . . . . 99 49 Total Robot Build Rating 4 | . . . . . 2 2 Part Schematics Acquired . | . . . . . . . Parts Built . | . . . . . . . Authchips . | . . . . . . . Time . | . . . . . . . Total Part Build Rating . | . . . . . . . Part Studies Acquired . | . . . . . . . Parts Repaired . | . . . . . . . Time . | . . . . . . . Parts Recycled . | . . . . . . . Recycled Matter . | . . . . . . . Retrieved Matter . | . . . . . . . Retrieved Components 2 | . . . 2 . . . Parts Scanalyzed . | . . . . . . . Part Schematics Acquired . | . . . . . . . Parts Damaged . | . . . . . . . Bothacking | -11 -10 -10 -9 -9 -6 -5 ------------ Run | Yrd Mat Sub Rec Scr Fac Fac Used RIF Installer . | . . . . . . . Robots Hacked . | . . . . . . . Non-combat . | . . . . . . . Combat . | . . . . . . . Robot Hacks Applied . | . . . . . . . Relay Couplers Released . | . . . . . . . Fabnet Peak Effective % . | . . . . . . . Robots Rewired . | . . . . . . . Allies Hacked . | . . . . . . . Hacks Repelled . | . . . . . . . Allies | -11 -10 -10 -9 -9 -6 -5 -------- Run | Yrd Mat Sub Rec Scr Fac Fac Total Allies 2 | . . . . . 1 1 Largest Group 1 | . . . . . 1 1 Highest-Rated Group 27 | . . . . . 27 27 Highest-Rated Ally 27 | . . . . . 27 27 Total Orders 3 | . . . . . 1 2 STAY 1 | . . . . . . 1 ROAM 1 | . . . . . 1 . GUARD 1 | . . . . . . 1 Ally Attacks . | . . . . . . . Total Damage . | . . . . . . . Kills . | . . . . . . . Allies Corrupted . | . . . . . . . Allies Melted . | . . . . . . . Intel | -11 -10 -10 -9 -9 -6 -5 ------- Run | Yrd Mat Sub Rec Scr Fac Fac Active Infowar (turns) 2472 | 23 396 183 186 637 877 170 Sensors 960 | . . . . . 791 169 Terrain 440 | 23 180 . . . 86 151 T.N.C. 1222 | . 216 183 186 637 . . Robot Analysis Total 2 | . 2 . . . . . Derelict Logs Recovered . | . . . . . . . Drone Launches . | . . . . . . . Drone Recoveries . | . . . . . . . Exploration | -11 -10 -10 -9 -9 -6 -5 ------------- Run | Yrd Mat Sub Rec Scr Fac Fac Turns Passed 3223 | 119 397 183 186 1037 1107 194 Spaces Moved 2569 | 65 293 135 195 1035 725 121 Core 16 | 1 . . . . 14 1 Treads . | . . . . . . . Legs . | . . . . . . . Wheels 2553 | 64 293 135 195 1035 711 120 Hover . | . . . . . . . Flight . | . . . . . . . Fastest Speed 50 | 50 95 95 95 80 90 90 Average Speed 100 | 99 99 95 95 97 107 106 Slowest Speed 450 | 100 115 95 95 105 450 350 Overloaded Moves . | . . . . . . . Propulsion Burnouts . | . . . . . . . Robots Hopped . | . . . . . . . Potential Cave-ins 5 | . . . . . 5 . Cave-ins Triggered . | . . . . . . . Exploration Rate (%) 27 | 4 40 10 36 80 20 4 Regions Visited 6 Branch Regions 3 Pre-discovered Areas 3 | . . . 2 1 . . Known Exits Taken 1 | . . . . . 1 . Unknown Exits Taken 5 | 1 1 1 1 1 . . Scrap Searched 3 | . . . . 3 . . Spaces Dug 7 | . . . . . 7 . Terrain Destroyed 48 | . 2 . . . 46 . Melee 7 | . . . . . 7 . Projectile 4 | . . . . . 4 . AOE 37 | . 2 . . . 35 . Terrain Rammed . | . . . . . . . Walls Destroyed . | . . . . . . . Machines Disabled . | . . . . . . . Actions | -11 -10 -10 -9 -9 -6 -5 --------- Run | Yrd Mat Sub Rec Scr Fac Fac Total 3053 | 92 362 190 195 1067 970 177 Wait 283 | 1 29 51 . . 159 43 Move 2563 | 64 292 134 194 1034 724 121 Hop . | . . . . . . . Pick Up 31 | 3 7 . 1 10 10 . Fast Attach 27 | 7 2 1 . 1 14 2 Attach 18 | 1 3 1 . 4 6 3 Detach 7 | 1 2 1 . 3 . . Swap 15 | 2 2 . . 5 6 . Drop 18 | 1 . 1 . 10 6 . Fire 79 | 12 23 . . . 36 8 Melee 7 | . . . . . 7 . Ram 5 | . 2 1 . . 2 . Kick . | . . . . . . . Crush . | . . . . . . . Escape Stasis . | . . . . . . . Rewire . | . . . . . . . Trap . | . . . . . . . Miscellaneous . | . . . . . . . Route ------- -11/Scrapyard -10/Materials (discovered 2 exits: [*Mat] / [*Sub]) -10/Subcaves -9/Recycling -9/Scraptown (discovered 2 exits: *Fac x2) -6/Factory -5/Factory History --------- Turn | Location | Event 19 | -11/Scrapyard | Discovered new exit (range 16) 120 | -11/Scrapyard | Entered Materials 322 | -10/Materials | Build established: Mutant 332 | -10/Materials | Discovered new exit (range 15) 496 | -10/Materials | Lost 3 parts (2n1w) 512 | -10/Materials | Discovered new exit (range 5) 517 | -10/Materials | Entered Subcaves 518 | -10/Subcaves | Approached by a straggling Scientist 592 | -10/Subcaves | Shifting Twisted Machinery released Sub. Optics 680 | -10/Subcaves | Shifting Twisted Machinery released Riot Gun 690 | -10/Subcaves | Discovered new exit (range 12) 694 | -10/Subcaves | Core integrity fell below 50% 699 | -10/Subcaves | Core integrity fell below 20% 700 | -10/Subcaves | Entered Recycling 861 | -9/Recycling | Scanned before Scraplab entrance 875 | -9/Recycling | Entered Scraplab 884 | -9/Recycling | Discovered new exit (range 3) 886 | -9/Recycling | Entered Scraptown 1100 | -9/Scraptown | Discovered new exit (range 11) 1187 | -9/Scraptown | Visited Cyclists 1200 | -9/Scraptown | Visited Artisan Demo Area 1253 | -9/Scraptown | Visited SPCMW 1306 | -9/Scraptown | Visited UFD Registry 1324 | -9/Scraptown | Registered with UFD as "Roughwarp" 1357 | -9/Scraptown | Visited Cartography Club 1371 | -9/Scraptown | Found Surveybot 17 Chip 1423 | -9/Scraptown | Visited Derelict Rescue Squad 1436 | -9/Scraptown | Found DRS Beacon 1458 | -9/Scraptown | Visited Junk Repository 1512 | -9/Scraptown | Visited A0-MCA Data Center 1518 | -9/Scraptown | Given a B+ rating by A0-MCA 1522 | -9/Scraptown | Found A0-MCA's Component Scanner 1537 | -9/Scraptown | Visited Scrapoid Pod Storage 1546 | -9/Scraptown | Found Scrapoid Pod 1564 | -9/Scraptown | Visited Research Penetration Think Tank 1717 | -9/Scraptown | Visited Curators Association 1754 | -9/Scraptown | Visited Sword Containment 1764 | -9/Scraptown | Found Companion Sword 1789 | -9/Scraptown | Visited Junk Cannon Lab 1794 | -9/Scraptown | Found Junk Cannon 1868 | -9/Scraptown | Met Optimus 1868 | -9/Scraptown | Accepted into 0bPrime 1919 | -9/Scraptown | Discovered new exit (range 5) 1923 | -9/Scraptown | Entered Factory 1923 | -6/Factory | Evolved 8 slots: Power x1, Propulsion x2, Utility x4, Weapon x1 2377 | -6/Factory | Build established: Skirmisher 2651 | -6/Factory | Fabricated I-25 Savior? 2779 | -6/Factory | Garrison activated, responded to threat 2847 | -6/Factory | Garrison activated, responded to threat 2905 | -6/Factory | Lost 12 parts (2p4n1u5w) 2976 | -6/Factory | Core integrity fell below 50% 3002 | -6/Factory | Cargo convoy interrupted 3015 | -6/Factory | Discovered new exit (range 8) 3015 | -6/Factory | Allied Derelicts emerged from ambush trap array 3021 | -6/Factory | Identified exit to Factory 3030 | -6/Factory | Entered another Factory area 3030 | -5/Factory | Evolved 2 slots: Utility x2 3071 | -5/Factory | Build established: Mutant 3127 | -5/Factory | Fabricated I-25 Savior (x1) 3224 | -5/Factory | Self-destructed Last Messages --------------- 03178_ Triggered Blade Trap. 03178_ Massive razor-sharp blades shoot up from within the floor. 03178_ Imp. Terrain Scanner severed. 03179_ Acquired Imp. Terrain Scanner. 03182_ Imp. Terrain Scanner destroyed. 03184_ Arm. Wheel destroyed. 03186_ U-05 Engineer lays Concrete. 03187_ S-27 Virus destroyed. 03189_ U-05 Engineer destroyed. 03198_ Surveybot 17 Chip destroyed. 03198_ S-27 Virus destroyed. 03200_ Imp. Sensor Array destroyed. 03200_ Lrg. Storage Unit destroyed. 03201_ Component scanned: Imp. Heavy Laser. 03206_ Acquired Imp. Heavy Laser. 03207_ Arm. Wheel destroyed. 03208_ S-27 Virus suffers critical hit (Burn). 03208_ VTOL Module melted. 03208_ S-27 Virus destroyed. Map ----- +----------------------------------------------------+ | | | | | | | | | #####??###################???????????????????????? | | ###?###??# #???????????????????????? | | ########## #???????????????????????? | | ####?##?## #???????????????????????? | | #######?## #???????????????????????? | | ########## #???????????????????????? | | ##?####### #???????????????????????? | | ######?### #???????????????????????? | | #########?? ?????????????????????????? | | ########?# ???????????????????????????? | | #########? ? ?????????????????????????????? | | #################+######?????????????????????????? | | ^ [ #?????????????????????????? | | = * = &==#?????????????????????????? | | ! | ^ |%= %= !!!#?????????????????????????? | | * =%! [ ##s########??????????????????? | | ^ ! # #??????????????????? | | #########"##### # [% #??????????????????? | | ###### # # #??????????????????? | | ######! "" # g*# #??????????????????? | | ###### "" ??# [g% !! #??????????????????? | | ###### """ ??# # !@ #??????????????????? | | ###### """ # # #??????????????????? | | ###### """ ?# # #??????????????????? | | + # ###########??????????????????? | | ###### # #????????????????????????????? | | ######[ ?? # #????????????????????????????? | | ########?###### #????????????????????????????? | | #######"""????? ?????????????????????????????? | | #######?"????????????????????????????????????????? | | ###?##???????????????????????????????????????????? | | #???????????????????????????????????????????? | | "" ????????????????????????????????????????????? | | "" ????????????????????????????????????????????? | | ""? ?????????????????????????????????????????????? | | ??????????????????????????????????????????????? | | ""???????????????????????????????????????????????? | | F????????????????????????????????????????????????? | | ?????????????????????????????????????????????????? | | ?????????????????????????????????????????????????? | | ?????????????????????????????????????????????????? | | ?????????????????????????????????????????????????? | | ?????????????????????????????????????????????????? | | ?????????????????????????????????????????????????? | | ?????????????????????????????????????????????????? | | ?????????????????????????????????????????????????? | +----------------------------------------------------+ Best States ------------- Heat Dissipation 40 Energy Generation 31 Energy Capacity 300 Matter Stores 300 Matter Capacity 300 Sight Range 16 Robot Scan Range 16 Terrain Scan Range 16 Terrain Scan Density 1210 Evasion (%) 44 Offensive Hacking 12 Item Schematics ----------------- None Robot Schematics ------------------ I-25 Savior | -9/Recycling | Hacked Fabricated ------------ I-25 Savior | x1 | -6/Factory I-25 Savior | x1 | -5/Factory Repaired ---------- Nothing Studied --------- None Alien Tech Used ----------------- None Achievements -------------- None Challenges ------------ None Game ------ Seed MagneticReflexPlating Manual? 0 Play Time 00:33:09 Cumulative 136.8 hours Start 2026.01.30 @ 20:30:57 End 2026.01.30 @ 21:12:07 Sessions 1 Manual Loads 0 Difficulty Rogue Special Mode None Game No. 198 Rogue 198 Adventurer 0 Explorer 0 Win Type - Total 1 Types 1/0/0/0/0/0/0/0/0/0 Lore% 64 Gallery% 58 Achievement% 42 Wizard Run 0 Options --------- Layout 2 ASCII 0 Keyboard 0 Movement Mouse Keybinds 0 Fullscreen 1 Font 16/SmallcapsGlow Map View 50x44 Zoom Use 0% Tactical HUD 1 Map Filters NONE Filters NONE Steam SD RUN: 42b1a9ac-6627-4f66-8670-9a363bd8ed4c